fUST/lending_fUST_20260601
["ID","MTS","AMOUNT","RATE_DAILY","PERIOD"]
[423663787,1780288245000,-500.0,0.0002587,2]
[423663780,1780288245000,-424.43520305,0.0002587,2]
[423663783,1780288245000,-502.87746982,0.0002587,2]
[423663786,1780288245000,-508.33489339,0.0002587,2]
[423663716,1780288245000,-501.00973181,0.00025596,2]
[423663754,1780288245000,-500.0,0.00025869,2]
[423663764,1780288245000,-500.0,0.00025869,2]
[423663779,1780288245000,-503.21069797,0.0002587,2]
[423663760,1780288245000,-500.0,0.00025869,2]
[423663762,1780288245000,-500.0,0.00025869,2]
[423663719,1780288245000,-502.36386611,0.00025596,2]
[423663732,1780288245000,-500.0,0.00025599,2]
[423663734,1780288245000,-501.17451258,0.00025599,2]
[423663733,1780288245000,-500.0,0.00025599,2]
[423663730,1780288245000,-439.75095665,0.00025597,2]
[423663735,1780288245000,-501.47695004,0.00025599,2]
[423663721,1780288245000,-500.0,0.00025596,2]
[423663729,1780288245000,-500.0,0.00025597,2]
[423663726,1780288245000,-471.59771833,0.00025597,2]
[423663728,1780288245000,-340.84257667,0.00025597,2]
[423663724,1780288245000,-500.0,0.00025597,2]
[423663723,1780288245000,-500.0,0.00025597,2]
[423663737,1780288245000,-500.0,0.00025599,2]
[423663750,1780288245000,-500.0,0.00025869,2]
[423663731,1780288245000,-500.0,0.00025599,2]
[423663756,1780288245000,-500.0,0.00025869,2]
[423663739,1780288245000,-501.28682733,0.00025599,2]
[423663753,1780288245000,-500.0,0.00025869,2]
[423663752,1780288245000,-500.0,0.00025869,2]
[423663746,1780288245000,-500.0,0.00025869,2]
[423663742,1780288245000,-501.61246352,0.00025599,2]
[423663748,1780288245000,-500.0,0.00025869,2]
[423663745,1780288245000,-500.0,0.00025869,2]
[423663744,1780288245000,-500.0,0.00025869,2]
[423663741,1780288245000,-501.67767537,0.00025599,2]
[423663747,1780288245000,-500.0,0.00025869,2]
[423663743,1780288245000,-500.0,0.00025869,2]
[423663751,1780288245000,-500.0,0.00025869,2]
[423663740,1780288245000,-500.0,0.00025599,2]
[423663749,1780288245000,-500.0,0.00025869,2]
[423663863,1780288246000,-500.0,0.00026144,2]
[423663865,1780288246000,-500.0,0.00026144,2]
[423663877,1780288246000,-500.0,0.00026144,2]
[423663875,1780288246000,-500.0,0.00026144,2]
[423663873,1780288246000,-500.0,0.00026144,2]
[423663861,1780288246000,-500.0,0.00026144,2]
[423663840,1780288246000,-524.86,0.00026143,2]
[423663856,1780288246000,-500.0,0.00026143,2]
[423663853,1780288246000,-500.0,0.00026143,2]
[423663842,1780288246000,-500.0,0.00026143,2]
[423663838,1780288246000,-500.0,0.00026143,2]
[423663854,1780288246000,-500.0,0.00026143,2]
[423663879,1780288246000,-500.0,0.00026144,2]
[423663859,1780288246000,-500.0,0.00026143,2]
[423663881,1780288246000,-500.0,0.00026144,2]
[423663895,1780288246000,-500.0,0.00026145,2]
[423663869,1780288246000,-500.0,0.00026144,2]
[423663871,1780288246000,-500.0,0.00026144,2]
[423663867,1780288246000,-500.0,0.00026144,2]
[423663885,1780288246000,-500.0,0.00026144,2]
[423663890,1780288246000,-500.0,0.00026144,2]
[423663887,1780288246000,-500.0,0.00026144,2]
[423663907,1780288246000,-500.0,0.00026417,2]
[423663892,1780288246000,-500.0,0.00026144,2]
[423663893,1780288246000,-503.56491675,0.00026144,2]
[423663904,1780288246000,-500.0,0.00026417,2]
[423663910,1780288246000,-500.0,0.00026417,2]
[423663899,1780288246000,-500.0,0.00026145,2]
[423663902,1780288246000,-500.0,0.00026417,2]
[423663897,1780288246000,-243.21444238,0.00026145,2]
[423663882,1780288246000,-500.0,0.00026144,2]
[423663836,1780288246000,-254.316758,0.00026143,2]
[423663789,1780288246000,-504.64106121,0.0002587,2]
[423663834,1780288246000,-254.316758,0.00026143,2]
[423663911,1780288246000,-500.0,0.00026417,2]
[423663788,1780288246000,-500.0,0.0002587,2]
[423663792,1780288246000,-618.94259226,0.0002587,2]
[423663790,1780288246000,-568.50236407,0.0002587,2]
[423663793,1780288246000,-502.32169996,0.0002587,2]
[423663794,1780288246000,-500.0,0.0002587,2]
[423663798,1780288246000,-500.0,0.00025871,2]
[423663791,1780288246000,-500.0,0.0002587,2]
[423663795,1780288246000,-500.0,0.0002587,2]
[423663800,1780288246000,-500.0,0.00025871,2]
[423663801,1780288246000,-500.0,0.00026143,2]
[423663804,1780288246000,-500.0,0.00026143,2]
[423663803,1780288246000,-500.0,0.00026143,2]
[423663818,1780288246000,-500.0,0.00026143,2]
[423663847,1780288246000,-500.0,0.00026143,2]
[423663817,1780288246000,-500.0,0.00026143,2]
[423663808,1780288246000,-300.0,0.00026143,2]
[423663823,1780288246000,-508.51464466,0.00026143,2]
[423663813,1780288246000,-500.0,0.00026143,2]
[423663825,1780288246000,-500.0,0.00026143,2]
[423663809,1780288246000,-500.0,0.00026143,2]
[423663815,1780288246000,-500.0,0.00026143,2]
[423663806,1780288246000,-500.0,0.00026143,2]
[423663811,1780288246000,-500.0,0.00026143,2]
[423663829,1780288246000,-500.0,0.00026143,2]
[423663831,1780288246000,-254.316758,0.00026143,2]
[423663827,1780288246000,-500.0,0.00026143,2]
[423663844,1780288246000,-500.0,0.00026143,2]
[423663832,1780288246000,-254.316758,0.00026143,2]
[423663851,1780288246000,-1276.4577,0.00026143,2]
[423663820,1780288246000,-500.0,0.00026143,2]
[423663915,1780288246000,-500.0,0.00026417,2]
[423663796,1780288246000,-500.0,0.00025871,2]
[423663914,1780288246000,-500.0,0.00026417,2]
[423663957,1780288246000,-500.0,0.00026418,2]
[423663961,1780288246000,-500.0,0.00026419,2]
[423663959,1780288246000,-500.0,0.00026418,2]
[423663962,1780288246000,-500.0,0.00026691,2]
[423663960,1780288246000,-589.70843418,0.00026419,2]
[423663958,1780288246000,-500.0,0.00026418,2]
[423663969,1780288246000,-500.0,0.00026691,2]
[423663971,1780288246000,-500.0,0.00026691,2]
[423663972,1780288246000,-500.0,0.00026691,2]
[423663970,1780288246000,-500.0,0.00026691,2]
[423663974,1780288246000,-500.0,0.00026691,2]
[423663975,1780288246000,-524.86,0.00026691,2]
[423663981,1780288246000,-500.0,0.00026691,2]
[423663973,1780288246000,-500.0,0.00026691,2]
[423663963,1780288246000,-500.0,0.00026691,2]
[423663977,1780288246000,-500.0,0.00026691,2]
[423663982,1780288246000,-500.0,0.00026691,2]
[423663976,1780288246000,-500.0,0.00026691,2]
[423663978,1780288246000,-500.0,0.00026691,2]
[423663979,1780288246000,-1276.4577,0.00026691,2]
[423663984,1780288246000,-500.0,0.00026692,2]
[423663989,1780288246000,-500.0,0.00026692,2]
[423663991,1780288246000,-500.0,0.00026692,2]
[423663983,1780288246000,-500.0,0.00026691,2]
[423663985,1780288246000,-500.0,0.00026692,2]
[423663986,1780288246000,-500.0,0.00026692,2]
[423663987,1780288246000,-500.0,0.00026692,2]
[423663988,1780288246000,-500.0,0.00026692,2]
[423663990,1780288246000,-500.0,0.00026692,2]
[423663913,1780288246000,-500.0,0.00026417,2]
[423663980,1780288246000,-500.0,0.00026691,2]
[423663955,1780288246000,-250.9458787,0.00026418,2]
[423663992,1780288246000,-500.0,0.00026692,2]
[423663967,1780288246000,-500.0,0.00026691,2]
[423663966,1780288246000,-500.0,0.00026691,2]
[423663917,1780288246000,-500.0,0.00026417,2]
[423663929,1780288246000,-524.86,0.00026417,2]
[423663918,1780288246000,-500.0,0.00026417,2]
[423663930,1780288246000,-500.0,0.00026417,2]
[423663934,1780288246000,-500.0,0.00026417,2]
[423663924,1780288246000,-500.0,0.00026417,2]
[423663932,1780288246000,-500.0,0.00026417,2]
[423663925,1780288246000,-500.0,0.00026417,2]
[423663922,1780288246000,-500.0,0.00026417,2]
[423663920,1780288246000,-500.0,0.00026417,2]
[423663938,1780288246000,-500.0,0.00026417,2]
[423663936,1780288246000,-1276.4577,0.00026417,2]
[423663939,1780288246000,-500.0,0.00026417,2]
[423663940,1780288246000,-500.0,0.00026417,2]
[423663927,1780288246000,-500.0,0.00026417,2]
[423663950,1780288246000,-500.0,0.00026418,2]
[423663943,1780288246000,-500.0,0.00026418,2]
[423663965,1780288246000,-500.0,0.00026691,2]
[423663956,1780288246000,-343.32199267,0.00026418,2]
[423663964,1780288246000,-506.03924695,0.00026691,2]
[423663954,1780288246000,-500.0,0.00026418,2]
[423663949,1780288246000,-500.0,0.00026418,2]
[423663946,1780288246000,-500.0,0.00026418,2]
[423663968,1780288246000,-500.0,0.00026691,2]
[423663941,1780288246000,-500.0,0.00026417,2]
[423663947,1780288246000,-500.0,0.00026418,2]
[423663951,1780288246000,-500.0,0.00026418,2]
[423663953,1780288246000,-500.0,0.00026418,2]
[423663945,1780288246000,-500.0,0.00026418,2]
[423663948,1780288246000,-500.0,0.00026418,2]
[423663952,1780288246000,-500.0,0.00026418,2]
[423664065,1780288247000,-500.0,0.00027239,2]
[423664061,1780288247000,-500.0,0.00027239,2]
[423664064,1780288247000,-500.0,0.00027239,2]
[423664055,1780288247000,-500.0,0.00026966,2]
[423664053,1780288247000,-178.21441741,0.00026966,2]
[423664051,1780288247000,-500.0,0.00026966,2]
[423664040,1780288247000,-500.0,0.00026966,2]
[423664050,1780288247000,-500.0,0.00026966,2]
[423664049,1780288247000,-500.0,0.00026966,2]
[423664058,1780288247000,-348.39250307,0.00027239,2]
[423664036,1780288247000,-500.0,0.00026965,2]
[423664042,1780288247000,-500.0,0.00026966,2]
[423664038,1780288247000,-500.0,0.00026966,2]
[423664067,1780288247000,-500.0,0.00027239,2]
[423664057,1780288247000,-682.24683401,0.00027023,2]
[423664054,1780288247000,-500.0,0.00026966,2]
[423664060,1780288247000,-500.0,0.00027239,2]
[423664059,1780288247000,-500.0,0.00027239,2]
[423664063,1780288247000,-500.0,0.00027239,2]
[423664062,1780288247000,-500.0,0.00027239,2]
[423664066,1780288247000,-500.0,0.00027239,2]
[423664068,1780288247000,-500.0,0.00027239,2]
[423664078,1780288247000,-500.0,0.0002724,2]
[423664079,1780288247000,-500.0,0.0002724,2]
[423664077,1780288247000,-500.0,0.0002724,2]
[423664069,1780288247000,-524.86,0.00027239,2]
[423664052,1780288247000,-500.0,0.00026966,2]
[423664070,1780288247000,-500.0,0.00027239,2]
[423664056,1780288247000,-500.0,0.00026966,2]
[423664046,1780288247000,-500.0,0.00026966,2]
[423664009,1780288247000,-500.0,0.00026965,2]
[423664035,1780288247000,-500.0,0.00026965,2]
[423664071,1780288247000,-500.0,0.00027239,2]
[423663994,1780288247000,-500.0,0.00026692,2]
[423663993,1780288247000,-500.0,0.00026692,2]
[423663995,1780288247000,-254.316758,0.00026692,2]
[423663996,1780288247000,-254.316758,0.00026692,2]
[423664000,1780288247000,-500.0,0.00026692,2]
[423663997,1780288247000,-254.316758,0.00026692,2]
[423663999,1780288247000,-500.0,0.00026692,2]
[423663998,1780288247000,-254.316767,0.00026692,2]
[423664001,1780288247000,-500.0,0.00026692,2]
[423664004,1780288247000,-500.0,0.00026965,2]
[423664002,1780288247000,-500.0,0.00026965,2]
[423664005,1780288247000,-500.0,0.00026965,2]
[423664003,1780288247000,-500.0,0.00026965,2]
[423664007,1780288247000,-500.0,0.00026965,2]
[423664017,1780288247000,-500.0,0.00026965,2]
[423664011,1780288247000,-500.0,0.00026965,2]
[423664019,1780288247000,-500.0,0.00026965,2]
[423664006,1780288247000,-500.0,0.00026965,2]
[423664015,1780288247000,-500.0,0.00026965,2]
[423664021,1780288247000,-524.86,0.00026965,2]
[423664025,1780288247000,-500.0,0.00026965,2]
[423664027,1780288247000,-500.0,0.00026965,2]
[423664013,1780288247000,-500.0,0.00026965,2]
[423664023,1780288247000,-500.0,0.00026965,2]
[423664028,1780288247000,-1276.4577,0.00026965,2]
[423664030,1780288247000,-500.0,0.00026965,2]
[423664032,1780288247000,-500.0,0.00026965,2]
[423664044,1780288247000,-500.0,0.00026966,2]
[423664048,1780288247000,-500.0,0.00026966,2]
[423664073,1780288247000,-1276.4577,0.00027239,2]
[423664082,1780288247000,-500.0,0.0002724,2]
[423664076,1780288247000,-500.0,0.00027239,2]
[423664117,1780288247000,-500.0,0.00027514,2]
[423664118,1780288247000,-500.0,0.00027514,2]
[423664116,1780288247000,-500.0,0.00027514,2]
[423664110,1780288247000,-1276.4577,0.00027513,2]
[423664111,1780288247000,-500.0,0.00027513,2]
[423664113,1780288247000,-500.0,0.00027513,2]
[423664112,1780288247000,-500.0,0.00027513,2]
[423664120,1780288247000,-500.0,0.00027514,2]
[423664132,1780288247000,-500.0,0.00027787,2]
[423664122,1780288247000,-500.0,0.00027514,2]
[423664131,1780288247000,-500.0,0.00027787,2]
[423664119,1780288247000,-500.0,0.00027514,2]
[423664121,1780288247000,-500.0,0.00027514,2]
[423664130,1780288247000,-500.0,0.00027787,2]
[423664126,1780288247000,-500.0,0.00027514,2]
[423664123,1780288247000,-500.0,0.00027514,2]
[423664128,1780288247000,-200.63892981,0.00027787,2]
[423664124,1780288247000,-500.0,0.00027514,2]
[423664127,1780288247000,-500.0,0.00027787,2]
[423664125,1780288247000,-500.0,0.00027514,2]
[423664129,1780288247000,-500.0,0.00027787,2]
[423664133,1780288247000,-500.0,0.00027787,2]
[423664135,1780288247000,-524.86,0.00027787,2]
[423664136,1780288247000,-500.0,0.00027787,2]
[423664075,1780288247000,-500.0,0.00027239,2]
[423664137,1780288247000,-500.0,0.00027787,2]
[423664134,1780288247000,-500.0,0.00027787,2]
[423664139,1780288247000,-1276.4577,0.00027787,2]
[423664140,1780288247000,-444.9381265,0.00027787,2]
[423664114,1780288247000,-500.0,0.00027514,2]
[423664106,1780288247000,-524.86,0.00027513,2]
[423664138,1780288247000,-536.320331,0.00027787,2]
[423664109,1780288247000,-500.0,0.00027513,2]
[423664115,1780288247000,-500.0,0.00027514,2]
[423664072,1780288247000,-500.0,0.00027239,2]
[423664080,1780288247000,-500.0,0.0002724,2]
[423664084,1780288247000,-500.0,0.0002724,2]
[423664092,1780288247000,-1228.04430122,0.00027303,2]
[423664081,1780288247000,-500.0,0.0002724,2]
[423664091,1780288247000,-791.0,0.00027266,30]
[423664083,1780288247000,-500.0,0.0002724,2]
[423664085,1780288247000,-500.0,0.0002724,2]
[423664086,1780288247000,-500.0,0.0002724,2]
[423664087,1780288247000,-500.0,0.0002724,2]
[423664088,1780288247000,-500.0,0.0002724,2]
[423664089,1780288247000,-500.0,0.0002724,2]
[423664090,1780288247000,-1000.0,0.00027266,30]
[423664074,1780288247000,-500.0,0.00027239,2]
[423664104,1780288247000,-500.0,0.00027513,2]
[423664094,1780288247000,-9349.2885339,0.00027408,2]
[423664105,1780288247000,-500.0,0.00027513,2]
[423664101,1780288247000,-500.0,0.00027513,2]
[423664103,1780288247000,-500.0,0.00027513,2]
[423664102,1780288247000,-500.0,0.00027513,2]
[423664098,1780288247000,-500.0,0.00027513,2]
[423664107,1780288247000,-500.0,0.00027513,2]
[423664097,1780288247000,-500.0,0.00027513,2]
[423664093,1780288247000,-2051.2736448,0.00027408,2]
[423664099,1780288247000,-500.0,0.00027513,2]
[423664108,1780288247000,-500.0,0.00027513,2]
[423664100,1780288247000,-500.0,0.00027513,2]
[423664096,1780288247000,-157.25860506,0.00027413,2]
[423664095,1780288247000,-3019.2290219,0.00027408,2]
[423664171,1780288248000,-524.86,0.00028335,2]
[423664181,1780288248000,-500.0,0.00028883,2]
[423664172,1780288248000,-500.0,0.00028335,2]
[423664170,1780288248000,-500.0,0.00028335,2]
[423664173,1780288248000,-489.27158188,0.00028336,2]
[423664175,1780288248000,-509.1221672,0.00028336,2]
[423664174,1780288248000,-500.0,0.00028336,2]
[423664177,1780288248000,-500.0,0.00028609,2]
[423664178,1780288248000,-524.86,0.00028609,2]
[423664179,1780288248000,-500.0,0.00028609,2]
[423664180,1780288248000,-199.521122,0.00028767,60]
[423664176,1780288248000,-500.0,0.00028336,2]
[423664182,1780288248000,-524.86,0.00028883,2]
[423664186,1780288248000,-524.86,0.00029157,2]
[423664184,1780288248000,-2183.18986884,0.00028902,2]
[423664185,1780288248000,-493.48,0.00029157,2]
[423664193,1780288248000,-1000.0,0.00029993,30]
[423664192,1780288248000,-524.86,0.00029979,2]
[423664190,1780288248000,-524.86,0.00029705,2]
[423664189,1780288248000,-500.0,0.00029431,2]
[423664187,1780288248000,-500.0,0.00029157,2]
[423664188,1780288248000,-524.86,0.00029431,2]
[423664191,1780288248000,-558.27,0.00029705,2]
[423664168,1780288248000,-500.0,0.00028062,2]
[423664183,1780288248000,-500.0,0.00028883,2]
[423664169,1780288248000,-500.0,0.00028062,2]
[423664151,1780288248000,-500.0,0.00027788,2]
[423664165,1780288248000,-500.0,0.00028062,2]
[423664141,1780288248000,-500.0,0.00027787,2]
[423664142,1780288248000,-500.0,0.00027788,2]
[423664144,1780288248000,-500.0,0.00027788,2]
[423664145,1780288248000,-500.0,0.00027788,2]
[423664143,1780288248000,-500.0,0.00027788,2]
[423664153,1780288248000,-588.66,0.00028061,2]
[423664149,1780288248000,-500.0,0.00027788,2]
[423664150,1780288248000,-500.0,0.00027788,2]
[423664154,1780288248000,-500.0,0.00028061,2]
[423664146,1780288248000,-500.0,0.00027788,2]
[423664147,1780288248000,-500.0,0.00027788,2]
[423664163,1780288248000,-500.0,0.00028062,2]
[423664152,1780288248000,-500.0,0.00027788,2]
[423664155,1780288248000,-500.0,0.00028061,2]
[423664157,1780288248000,-524.86,0.00028061,2]
[423664158,1780288248000,-500.0,0.00028061,2]
[423664161,1780288248000,-500.0,0.00028062,2]
[423664159,1780288248000,-500.0,0.00028062,2]
[423664162,1780288248000,-500.0,0.00028062,2]
[423664164,1780288248000,-500.0,0.00028062,2]
[423664156,1780288248000,-150.80042246,0.00028061,2]
[423664167,1780288248000,-500.0,0.00028062,2]
[423664160,1780288248000,-500.0,0.00028062,2]
[423664166,1780288248000,-500.0,0.00028062,2]
[423664148,1780288248000,-500.0,0.00027788,2]
[423664194,1780288248000,-1000.0,0.00029993,30]
[423664200,1780288248000,-524.86,0.00030527,2]
[423664201,1780288248000,-524.86,0.00030801,2]
[423664226,1780288248000,-5214.38215509,0.000332,2]
[423664229,1780288248000,-30364.42902784,0.000332,117]
[423664228,1780288248000,-20000.0000012,0.000332,117]
[423664230,1780288248000,-1913.29,0.000332,117]
[423664232,1780288248000,-501.97966563,0.00025048,2]
[423664233,1780288248000,-504.88055974,0.00025048,2]
[423664236,1780288248000,-466.59993515,0.000332,117]
[423664231,1780288248000,-256.91062591,0.000332,117]
[423664234,1780288248000,-4893.81434566,0.000332,117]
[423664238,1780288248000,-1005.223978,0.000189,2]
[423664239,1780288248000,-1000.0,0.000194,2]
[423664224,1780288248000,-608.54363852,0.0003301,7]
[423664237,1780288248000,-5000.0,0.00015543,2]
[423664244,1780288248000,-71718.78968672,0.000332,117]
[423664241,1780288248000,-1000.0,0.000204,2]
[423664243,1780288248000,-1000.0,0.000214,2]
[423664245,1780288248000,-49355.49103557,0.000332,117]
[423664242,1780288248000,-1000.0,0.000209,2]
[423664247,1780288248000,-500.0,0.0003326,30]
[423664248,1780288248000,-500.0,0.0003326,30]
[423664249,1780288248000,-151.0,0.0003326,30]
[423664246,1780288248000,-23431.82185724,0.000332,117]
[423664250,1780288248000,-151.0,0.0003326,30]
[423664205,1780288248000,-4912.17720489,0.000321,2]
[423664240,1780288248000,-1000.0,0.000199,2]
[423664225,1780288248000,-152.0,0.00033024,7]
[423664235,1780288248000,-601.92327094,0.000332,117]
[423664223,1780288248000,-163.12734302,0.0003301,7]
[423664195,1780288248000,-152.05340978,0.0003,14]
[423664199,1780288248000,-185.0,0.00030509,2]
[423664204,1780288248000,-524.86,0.00031349,2]
[423664206,1780288248000,-1356.05074663,0.00032148,30]
[423664198,1780288248000,-444.0,0.00030509,2]
[423664227,1780288248000,-15358.86889221,0.000332,117]
[423664203,1780288248000,-429.345,0.00031233,10]
[423664196,1780288248000,-524.86,0.00030253,2]
[423664202,1780288248000,-524.86,0.00031075,2]
[423664207,1780288248000,-165.62933225,0.00032204,2]
[423664209,1780288248000,-406.47232638,0.00032424,2]
[423664214,1780288248000,-500.0,0.00032877,10]
[423664210,1780288248000,-152.0,0.00032781,7]
[423664197,1780288248000,-3411.23417006,0.00030501,2]
[423664212,1780288248000,-398.46213774,0.00032848,7]
[423664215,1780288248000,-500.0,0.00032877,12]
[423664221,1780288248000,-500.0,0.0003301,7]
[423664222,1780288248000,-301.62499993,0.0003301,7]
[423664218,1780288248000,-1000.0,0.00032992,30]
[423664213,1780288248000,-1980.0,0.00032876,120]
[423664220,1780288248000,-579.0,0.00032992,30]
[423664208,1780288248000,-500.0,0.00032329,12]
[423664216,1780288248000,-200.0,0.00032877,120]
[423664219,1780288248000,-1000.0,0.00032992,30]
[423664211,1780288248000,-152.0,0.00032781,7]
[423664217,1780288248000,-152.0,0.00032924,2]
[423664260,1780288249000,-200.0,0.0003326,30]
[423664262,1780288249000,-2592.5,0.0003326,30]
[423664267,1780288249000,-2891.0462154,0.0003326,30]
[423664268,1780288249000,-2998.01492537,0.0003326,30]
[423664261,1780288249000,-200.58954686,0.0003326,30]
[423664258,1780288249000,-3453.87735717,0.0003326,30]
[423664259,1780288249000,-278.19697651,0.0003326,30]
[423664254,1780288249000,-151.0,0.0003326,30]
[423664252,1780288249000,-151.0,0.0003326,30]
[423664255,1780288249000,-156.587,0.0003326,30]
[423664253,1780288249000,-173.63458912,0.0003326,30]
[423664256,1780288249000,-518.5,0.0003326,30]
[423664251,1780288249000,-500.0,0.0003326,30]
[423664269,1780288249000,-3108.94147761,0.0003326,30]
[423664257,1780288249000,-2500.0,0.0003326,30]
[423664263,1780288249000,-200.05611765,0.0003326,30]
[423664280,1780288249000,-7465.3,0.000333,120]
[423664266,1780288249000,-1451.36556314,0.0003326,30]
[423664265,1780288249000,-1336.52856936,0.0003326,30]
[423664282,1780288249000,-381.83192387,0.000333,120]
[423664283,1780288249000,-1405.14528569,0.000333,120]
[423664284,1780288249000,-15630.2,0.000333,120]
[423664281,1780288249000,-512521.31123486,0.000333,120]
[423664275,1780288249000,-3770.77574739,0.000333,120]
[423664277,1780288249000,-8742.61712862,0.000333,120]
[423664285,1780288249000,-309.06657773,0.000333,120]
[423664274,1780288249000,-283.87210497,0.000333,120]
[423664279,1780288249000,-657.48855298,0.000333,120]
[423664272,1780288249000,-273.57949433,0.000333,120]
[423664273,1780288249000,-1760.36783297,0.000333,120]
[423664270,1780288249000,-481.45286657,0.0003326,30]
[423664271,1780288249000,-56145.68370627,0.000333,120]
[423664276,1780288249000,-431.83675393,0.000333,120]
[423664264,1780288249000,-2688.4225,0.0003326,30]
[423664287,1780288689000,4919375.71967141,0.00020548,120]
[423664346,1780289432000,-561.14638683,0.00013,2]
[423664388,1780289441000,-500.0,0.00015217,2]
[423664389,1780289441000,-373.15055598,0.00015217,2]
[423664390,1780289441000,-500.0,0.00015217,2]
[423664391,1780289441000,-500.0,0.00015217,2]
[423664387,1780289441000,-500.0,0.00014943,2]
[423664396,1780289441000,-463.58,0.00015488,2]
[423664394,1780289441000,-500.0,0.00015387,2]
[423664395,1780289441000,-500.0,0.00015387,2]
[423664386,1780289441000,-500.0,0.00014943,2]
[423664400,1780289441000,-500.0,0.00015488,2]
[423664392,1780289441000,-500.0,0.00015217,2]
[423664385,1780289441000,-502.05356586,0.00014943,2]
[423664380,1780289441000,-500.0,0.00014943,2]
[423664382,1780289441000,-504.20804315,0.00014943,2]
[423664393,1780289441000,-500.0,0.00015387,2]
[423664383,1780289441000,-500.0,0.00014943,2]
[423664381,1780289441000,-500.0,0.00014943,2]
[423664378,1780289441000,-300.0,0.00014761,2]
[423664379,1780289441000,-170.6203956,0.00014763,2]
[423664377,1780289441000,-5000.0,0.00013927,2]
[423664376,1780289441000,-5000.0,0.00013788,2]
[423664375,1780289441000,-41932.80873345,0.00013,2]
[423664373,1780289441000,-7319.99487972,0.00013,2]
[423664407,1780289441000,-500.0,0.00015491,2]
[423664384,1780289441000,-503.67549075,0.00014943,2]
[423664397,1780289441000,-500.0,0.00015488,2]
[423664423,1780289441000,-383.19915306,0.00016072,2]
[423664398,1780289441000,-500.0,0.00015488,2]
[423664399,1780289441000,-500.0,0.00015488,2]
[423664426,1780289441000,-420.17662403,0.00016072,2]
[423664427,1780289441000,-431.45709127,0.00016073,2]
[423664425,1780289441000,-170.75666601,0.00016072,2]
[423664424,1780289441000,-464.40803911,0.00016072,2]
[423664421,1780289441000,-500.0,0.00016037,2]
[423664419,1780289441000,-500.0,0.00016037,2]
[423664418,1780289441000,-268.79199172,0.00015765,2]
[423664415,1780289441000,-500.0,0.00015763,2]
[423664414,1780289441000,-500.0,0.00015763,2]
[423664409,1780289441000,-500.0,0.00015491,2]
[423664413,1780289441000,-198.865934,0.00015763,2]
[423664422,1780289441000,-500.0,0.00016039,2]
[423664416,1780289441000,-500.0,0.00015763,2]
[423664401,1780289441000,-500.0,0.00015488,2]
[423664410,1780289441000,-178.18700193,0.00015749,2]
[423664402,1780289441000,-500.0,0.00015489,2]
[423664403,1780289441000,-500.0,0.00015489,2]
[423664404,1780289441000,-500.0,0.00015489,2]
[423664405,1780289441000,-500.0,0.00015489,2]
[423664408,1780289441000,-500.0,0.00015491,2]
[423664420,1780289441000,-500.0,0.00016037,2]
[423664411,1780289441000,-232.20401956,0.00015749,2]
[423664412,1780289441000,-173.99386702,0.0001575,2]